[Event "44th Chess Olympiad Women 2022"]
[Site "Chennai"]
[Date "2022.07.31"]
[Round "3.7"]
[White "Enkhtuul, Altan-Ulzii"]
[Black "Tokhirjonova, Gulrukhbegim"]
[Result "1/2-1/2"]
[WhiteElo "2267"]
[BlackElo "2329"]
[Annotator "RC"]
[PlyCount "198"]
[EventDate "2022.??.??"]
[TimeControl "60"]

1. e4 {[%emt 0:00:03]} e5 {[%emt 0:01:48]} 2. Nf3 {[%emt 0:00:15]} Nc6 {
[%emt 0:00:14]} 3. Nc3 {[%emt 0:00:06]} Nf6 {[%emt 0:02:09]} 4. d4 {[%emt 0:00:
00]} exd4 {[%emt 0:00:21]} 5. Nxd4 {[%emt 0:00:07]} Bb4 {[%emt 0:00:43]} 6.
Nxc6 {[%emt 0:00:05]} bxc6 {[%emt 0:00:31]} 7. Bd3 {[%emt 0:00:06]} d5 {
[%emt 0:02:27]} 8. exd5 {[%emt 0:00:18]} O-O {[%emt 0:00:47]} 9. O-O {[%emt 0:
00:00]} cxd5 {[%emt 0:00:09]} 10. h3 {[%emt 0:00:12]} Rb8 {[%emt 0:01:43]} 11.
Bf4 {[%emt 0:03:24]} Bd6 {[%emt 0:02:57]} 12. Bxd6 {[%emt 0:00:21]} Qxd6 {
[%emt 0:00:09]} 13. b3 {[%emt 0:01:30]} c5 {[%emt 0:05:11]} 14. Re1 {[%emt 0:
00:00]} Rd8 {[%emt 0:04:20]} 15. Qe2 {[%emt 0:03:43]} Be6 {[%emt 0:02:44]} 16.
Rad1 {[%emt 0:01:57]} Qf4 {[%emt 0:06:01]} 17. Qe5 {[%emt 0:17:33]} Qb4 {
[%emt 0:06:16]} 18. a3 {[%emt 0:12:52]} Qa5 {[%emt 0:09:29]} 19. Ra1 {[%emt 0:
00:00]} Rbc8 {[%emt 0:17:08]} 20. b4 {[%emt 0:06:12]} cxb4 {[%emt 0:03:33]} 21.
axb4 {[%emt 0:00:26]} Qxb4 {[%emt 0:00:16]} 22. Nb5 {[%emt 0:00:24]} Nd7 {
[%emt 0:09:13]} 23. Qg3 {[%emt 0:01:15]} d4 {[%emt 0:06:37]} 24. Reb1 {[%emt 0:
00:00]} Qc5 {[%emt 0:00:21]} 25. Nd6 {[%emt 0:01:56]} Ne5 {[%emt 0:06:54]} 26.
Nb7 {[%emt 0:01:11]} Qc7 {[%emt 0:02:15]} 27. Nxd8 {[%emt 0:00:09]} Rxd8 {
[%emt 0:00:06]} 28. Rb5 {[%emt 0:11:06]} Rd5 {[%emt 0:03:15]} 29. Rxd5 {
[%emt 0:06:00]} Bxd5 {[%emt 0:00:02]} 30. Qh4 {[%emt 0:00:41]} Nxd3 {[%emt 0:
00:00]} 31. cxd3 {[%emt 0:00:51]} Qb6 {[%emt 0:01:14]} 32. Qe7 {[%emt 0:04:55]}
h6 {[%emt 0:00:57]} 33. Qd7 {[%emt 0:01:10]} Ba2 {[%emt 0:02:22]} 34. Qc8+ {
[%emt 0:01:11]} Kh7 {[%emt 0:00:09]} 35. Qf5+ {[%emt 0:00:14]} Kg8 {[%emt 0:00:
00]} 36. Qc8+ {[%emt 0:00:40]} Kh7 {[%emt 0:00:02]} 37. Rc1 {[%emt 0:00:31]}
Be6 {[%emt 0:01:24]} 38. Qc5 {[%emt 0:00:30]} Qb2 {[%emt 0:00:11]} 39. Rf1 {
[%emt 0:00:36]} a6 {[%emt 0:00:12]} 40. f4 {[%emt 0:00:09]} g6 {[%emt 0:02:57]}
41. Re1 {[%emt 0:15:38]} Qd2 {[%emt 0:04:55]} 42. Re4 {[%emt 0:01:00]} Qxd3 {
[%emt 0:00:36]} 43. Rxd4 {[%emt 0:03:09]} Qe3+ {[%emt 0:02:00]} 44. Kh2 {
[%emt 0:00:05]} a5 {[%emt 0:01:15]} 45. Qd6 {[%emt 0:01:58]} h5 {[%emt 0:01:17]
} 46. Ra4 {[%emt 0:07:18]} Bxh3 {[%emt 0:11:29]} 47. Ra3 {[%emt 0:01:32]} Qe6 {
[%emt 0:00:09]} 48. Qxe6 {[%emt 0:03:20]} Bxe6 {[%emt 0:00:02]} 49. Rxa5 {
[%emt 0:00:06]} Kg7 {[%emt 0:00:06]} 50. Kg3 {[%emt 0:00:06]} Bg4 {[%emt 0:00:
00]} 51. Kh4 {[%emt 0:00:31]} Be6 {[%emt 0:00:07]} 52. Ra7 {[%emt 0:00:34]} Bg4
{[%emt 0:00:09]} 53. Kg3 {[%emt 0:00:47]} Be6 {[%emt 0:00:04]} 54. Ra5 {
[%emt 0:00:12]} Bg4 {[%emt 0:00:06]} 55. Rc5 {[%emt 0:00:12]} Be6 {[%emt 0:00:
00]} 56. Kf3 {[%emt 0:00:02]} Bg4+ {[%emt 0:00:43]} 57. Ke4 {[%emt 0:00:13]}
Be6 {[%emt 0:00:15]} 58. g3 {[%emt 0:00:21]} Kf6 {[%emt 0:00:21]} 59. Rc6 {
[%emt 0:00:11]} Kg7 {[%emt 0:00:10]} 60. Ke5 {[%emt 0:00:18]} Bg4 {[%emt 0:00:
00]} 61. Rf6 {[%emt 0:01:18]} Bh3 {[%emt 0:00:17]} 62. Ra6 {[%emt 0:00:17]} Bf5
{[%emt 0:00:08]} 63. Ra7 {[%emt 0:01:54]} Bg4 {[%emt 0:00:21]} 64. Ra3 {
[%emt 0:00:46]} Be6 {[%emt 0:00:04]} 65. Ra6 {[%emt 0:00:19]} Bg4 {[%emt 0:00:
00]} 66. Kd5 {[%emt 0:00:16]} Bf5 {[%emt 0:00:07]} 67. Kd6 {[%emt 0:00:25]} Be6
{[%emt 0:00:07]} 68. Ke7 {[%emt 0:00:07]} Bc4 {[%emt 0:00:06]} 69. Rf6 {
[%emt 0:00:44]} Ba2 {[%emt 0:00:12]} 70. Ra6 {[%emt 0:00:58]} Bc4 {[%emt 0:00:
00]} 71. Ra7 {[%emt 0:00:26]} Be6 {[%emt 0:00:05]} 72. Ra5 {[%emt 0:00:20]} Bg4
{[%emt 0:00:46]} 73. Ra6 {[%emt 0:01:03]} Be2 {[%emt 0:00:40]} 74. Rc6 {
[%emt 0:00:11]} Bf3 {[%emt 0:00:19]} 75. Rf6 {[%emt 0:00:36]} Bd5 {[%emt 0:00:
00]} 76. f5 {[%emt 0:00:11]} g5 {[%emt 0:04:20]} 77. Rd6 {[%emt 0:00:26]} Bb3 {
[%emt 0:00:14]} 78. Rb6 {[%emt 0:01:05]} Ba2 {[%emt 0:00:04]} 79. Rb2 {[%emt 0:
00:00]} Bd5 {[%emt 0:00:22]} 80. Rh2 {[%emt 0:00:31]} Bf3 {[%emt 0:00:24]} 81.
Rf2 {[%emt 0:00:44]} Be4 {[%emt 0:00:12]} 82. f6+ {[%emt 0:00:32]} Kg6 {
[%emt 0:00:07]} 83. Rd2 {[%emt 0:00:08]} Bf5 {[%emt 0:01:59]} 84. Rd8 {[%emt 0:
00:00]} Be6 {[%emt 0:00:52]} 85. Rh8 {[%emt 0:00:46]} Bb3 {[%emt 0:00:12]} 86.
Rb8 {[%emt 0:00:38]} Be6 {[%emt 0:00:12]} 87. Rh8 {[%emt 0:00:51]} Bb3 {
[%emt 0:00:03]} 88. Rb8 {[%emt 0:00:19]} Be6 {[%emt 0:00:02]} 89. Rg8+ {
[%emt 0:00:47]} Kf5 {[%emt 0:00:07]} 90. Rg7 {[%emt 0:00:05]} h4 {[%emt 0:00:
00]} 91. gxh4 {[%emt 0:00:37]} gxh4 {[%emt 0:00:01]} 92. Rh7 {[%emt 0:00:50]}
Kg4 {[%emt 0:00:20]} 93. Rxf7 {[%emt 0:00:31]} Bxf7 {[%emt 0:00:23]} 94. Kxf7 {
[%emt 0:00:02]} h3 {[%emt 0:00:07]} 95. Ke7 {[%emt 0:00:06]} h2 {[%emt 0:00:05]
} 96. f7 {[%emt 0:00:04]} h1=Q {[%emt 0:00:08]} 97. f8=Q {[%emt 0:00:05]} Qe4+
{[%emt 0:00:12]} 98. Kd7 {[%emt 0:00:40]} Qf5+ {[%emt 0:00:07]} 99. Qxf5+ {
[%emt 0:00:06]} Kxf5 {[%emt 0:00:03]} 1/2-1/2

[Event "44th Chess Olympiad Women 2022"]
[Site "Chennai"]
[Date "2022.07.31"]
[Round "3.7"]
[White "Krush, Irina"]
[Black "Bayarmaa, Bayarjargal"]
[Result "1/2-1/2"]
[WhiteElo "2430"]
[BlackElo "2171"]
[Annotator "RC"]
[PlyCount "95"]
[EventDate "2022.??.??"]
[TimeControl "60"]

1. e4 {[%emt 0:00:04]} c5 {[%emt 0:00:05]} 2. Nf3 {[%emt 0:00:08]} d6 {[%emt 0:
00:00]} 3. Bb5+ {[%emt 0:00:07]} Bd7 {[%emt 0:00:07]} 4. Bxd7+ {[%emt 0:00:19]}
Qxd7 {[%emt 0:00:06]} 5. O-O {[%emt 0:00:11]} Nc6 {[%emt 0:01:10]} 6. Re1 {
[%emt 0:00:49]} Nf6 {[%emt 0:01:09]} 7. c3 {[%emt 0:00:11]} e6 {[%emt 0:00:15]}
8. d4 {[%emt 0:00:24]} cxd4 {[%emt 0:00:26]} 9. cxd4 {[%emt 0:00:03]} d5 {
[%emt 0:00:29]} 10. e5 {[%emt 0:00:09]} Ne4 {[%emt 0:00:14]} 11. Nbd2 {[%emt 0:
00:00]} Nxd2 {[%emt 0:00:13]} 12. Bxd2 {[%emt 0:00:03]} Be7 {[%emt 0:00:48]}
13. Rc1 {[%emt 0:00:10]} O-O {[%emt 0:01:59]} 14. Rc3 {[%emt 0:00:23]} Rfc8 {
[%emt 0:08:45]} 15. a3 {[%emt 0:00:12]} a6 {[%emt 0:00:51]} 16. h4 {[%emt 0:00:
00]} b5 {[%emt 0:02:57]} 17. Rd3 {[%emt 0:00:22]} Qd8 {[%emt 0:05:33]} 18. Nh2
{[%emt 0:04:21]} Ra7 {[%emt 0:18:19]} 19. Qg4 {[%emt 0:02:52]} Kh8 {[%emt 0:00:
00]} 20. Nf3 {[%emt 0:10:29]} Qg8 {[%emt 0:06:47]} 21. Ng5 {[%emt 0:01:44]} Bd8
{[%emt 0:06:15]} 22. Ree3 {[%emt 0:11:08]} Ne7 {[%emt 0:04:17]} 23. Rf3 {
[%emt 0:04:01]} Nf5 {[%emt 0:01:22]} 24. Qf4 {[%emt 0:09:00]} Qe8 {[%emt 0:00:
00]} 25. g4 {[%emt 0:06:10]} Nh6 {[%emt 0:01:44]} 26. Qg3 {[%emt 0:10:52]} Rc2
{[%emt 0:07:29]} 27. b3 {[%emt 0:02:05]} a5 {[%emt 0:03:12]} 28. Nh3 {[%emt 0:
00:00]} Ng8 {[%emt 0:01:35]} 29. h5 {[%emt 0:00:36]} Be7 {[%emt 0:03:02]} 30.
h6 {[%emt 0:22:08]} Nxh6 {[%emt 0:00:48]} 31. Bxh6 {[%emt 0:00:25]} gxh6 {
[%emt 0:00:06]} 32. a4 {[%emt 0:05:28]} bxa4 {[%emt 0:00:42]} 33. bxa4 {
[%emt 0:00:02]} Rac7 {[%emt 0:02:05]} 34. Qf4 {[%emt 0:01:02]} Qf8 {[%emt 0:00:
00]} 35. Qxf7 {[%emt 0:06:36]} Qxf7 {[%emt 0:00:12]} 36. Rxf7 {[%emt 0:00:02]}
Kg8 {[%emt 0:00:18]} 37. Rff3 {[%emt 0:00:49]} R2c4 {[%emt 0:06:50]} 38. Nf4 {
[%emt 0:00:09]} R7c6 {[%emt 0:03:45]} 39. Nh5 {[%emt 0:00:08]} Rxa4 {[%emt 0:
00:00]} 40. Nf6+ {[%emt 0:01:55]} Kg7 {[%emt 0:01:20]} 41. Nh5+ {[%emt 0:06:51]
} Kg8 {[%emt 0:05:42]} 42. Nf6+ {[%emt 0:00:14]} Kh8 {[%emt 0:05:01]} 43. Nh5 {
[%emt 0:04:24]} Kg8 {[%emt 0:03:07]} 44. Nf6+ {[%emt 0:00:07]} Kg7 {[%emt 0:00:
00]} 45. Nh5+ {[%emt 0:00:08]} Kg8 {[%emt 0:00:19]} 46. Nf6+ {[%emt 0:00:09]}
Kg7 {[%emt 0:00:11]} 47. Nh5+ {[%emt 0:00:28]} Kg8 {[%emt 0:00:16]} 48. Nf6+ {
[%emt 0:00:09]} 1/2-1/2

[Event "44th Chess Olympiad Women 2022"]
[Site "Chennai"]
[Date "2022.07.31"]
[Round "3.7"]
[White "Munkhzul, Turmunkh"]
[Black "Yip, Carissa"]
[Result "1-0"]
[WhiteElo "2277"]
[BlackElo "2416"]
[Annotator "RC"]
[PlyCount "115"]
[EventDate "2022.??.??"]
[TimeControl "60"]

1. e4 {[%emt 0:00:03]} e5 {[%emt 0:00:04]} 2. Nf3 {[%emt 0:00:34]} Nc6 {
[%emt 0:00:04]} 3. Bb5 {[%emt 0:00:14]} a6 {[%emt 0:00:04]} 4. Bxc6 {[%emt 0:
00:00]} dxc6 {[%emt 0:00:22]} 5. d4 {[%emt 0:00:29]} exd4 {[%emt 0:02:12]} 6.
Qxd4 {[%emt 0:00:13]} Qxd4 {[%emt 0:07:11]} 7. Nxd4 {[%emt 0:00:07]} c5 {
[%emt 0:04:38]} 8. Ne2 {[%emt 0:00:57]} Bd7 {[%emt 0:06:19]} 9. Nbc3 {[%emt 0:
00:00]} O-O-O {[%emt 0:00:49]} 10. Be3 {[%emt 0:02:18]} Bc6 {[%emt 0:00:44]}
11. f3 {[%emt 0:01:48]} Bd6 {[%emt 0:02:44]} 12. Rd1 {[%emt 0:04:35]} Ne7 {
[%emt 0:01:56]} 13. Bf4 {[%emt 0:05:49]} Ng6 {[%emt 0:03:34]} 14. Bxd6 {
[%emt 0:00:51]} cxd6 {[%emt 0:00:07]} 15. Kf2 {[%emt 0:01:59]} Rhf8 {[%emt 0:
00:00]} 16. g4 {[%emt 0:07:59]} Ne5 {[%emt 0:04:26]} 17. Nd5 {[%emt 0:02:06]}
Bxd5 {[%emt 0:08:23]} 18. Rxd5 {[%emt 0:00:20]} Nc4 {[%emt 0:00:15]} 19. b3 {
[%emt 0:05:18]} Nb6 {[%emt 0:00:04]} 20. Rh5 {[%emt 0:00:25]} h6 {[%emt 0:00:
00]} 21. Nc3 {[%emt 0:04:49]} Rfe8 {[%emt 0:02:01]} 22. Rd1 {[%emt 0:01:40]} f6
{[%emt 0:08:41]} 23. a4 {[%emt 0:02:10]} Re6 {[%emt 0:09:06]} 24. Ne2 {[%emt 0:
00:00]} Kc7 {[%emt 0:03:02]} 25. Nf4 {[%emt 0:09:37]} Ree8 {[%emt 0:00:06]} 26.
h4 {[%emt 0:00:54]} Kc6 {[%emt 0:03:14]} 27. g5 {[%emt 0:04:11]} fxg5 {[%emt 0:
00:00]} 28. hxg5 {[%emt 0:01:29]} hxg5 {[%emt 0:04:47]} 29. Rxg5 {[%emt 0:00:
00]} Rd7 {[%emt 0:00:08]} 30. Rdg1 {[%emt 0:03:45]} Rf7 {[%emt 0:00:38]} 31.
R1g4 {[%emt 0:02:11]} Ref8 {[%emt 0:04:55]} 32. Kg3 {[%emt 0:01:39]} Nd7 {
[%emt 0:00:24]} 33. Rxg7 {[%emt 0:01:51]} Ne5 {[%emt 0:00:04]} 34. Rxf7 {
[%emt 0:00:26]} Rxf7 {[%emt 0:00:05]} 35. Rg8 {[%emt 0:00:24]} b5 {[%emt 0:00:
00]} 36. axb5+ {[%emt 0:02:56]} axb5 {[%emt 0:00:35]} 37. Rc8+ {[%emt 0:01:26]}
Kd7 {[%emt 0:00:23]} 38. Ra8 {[%emt 0:00:17]} b4 {[%emt 0:05:20]} 39. Ra7+ {
[%emt 0:00:29]} Ke8 {[%emt 0:00:04]} 40. Rxf7 {[%emt 0:02:30]} Kxf7 {[%emt 0:
00:00]} 41. Nd5 {[%emt 0:30:23]} Nc6 {[%emt 0:30:25]} 42. f4 {[%emt 0:01:36]}
Nd4 {[%emt 0:01:23]} 43. Ne3 {[%emt 0:00:13]} Kf6 {[%emt 0:00:00]} 44. Kg4 {
[%emt 0:00:00]} Kg6 {[%emt 0:00:00]} 45. Kg3 {[%emt 0:00:00]} Kf6 {[%emt 0:00:
00]} 46. Kf2 {[%emt 0:00:00]} Kf7 {[%emt 0:00:00]} 47. Ke1 {[%emt 0:00:00]} Ne6
{[%emt 0:00:00]} 48. Nd5 {[%emt 0:00:00]} Nd4 {[%emt 0:00:00]} 49. Kd2 {
[%emt 0:00:00]} Ke6 {[%emt 0:00:00]} 50. Kd3 {[%emt 0:00:00]} Nb5 {[%emt 0:00:
00]} 51. Ne3 {[%emt 0:00:00]} Nc3 {[%emt 0:00:00]} 52. f5+ {[%emt 0:00:00]} Kf7
{[%emt 0:00:00]} 53. Kc4 {[%emt 0:00:00]} Kg7 {[%emt 0:00:00]} 54. e5 {[%emt 0:
00:00]} dxe5 {[%emt 0:00:00]} 55. Kxc5 {[%emt 0:00:00]} Na2 {[%emt 0:00:00]}
56. Nd5 {[%emt 0:00:00]} e4 {[%emt 0:00:00]} 57. Kd4 {[%emt 0:00:00]} Kf7 {
[%emt 0:01:40]} 58. Kxe4 {[%emt 0:00:00]} 1-0

[Event "44th Chess Olympiad Women 2022"]
[Site "Chennai"]
[Date "2022.07.31"]
[Round "3.8"]
[White "De Seroux, Camille"]
[Black "Schneider, Jana"]
[Result "0-1"]
[WhiteElo "2106"]
[BlackElo "2342"]
[Annotator "RC"]
[PlyCount "132"]
[EventDate "2022.??.??"]
[TimeControl "60"]

1. e4 {[%emt 0:00:03]} e5 {[%emt 0:00:16]} 2. Nf3 {[%emt 0:00:15]} Nc6 {
[%emt 0:00:10]} 3. c3 {[%emt 0:00:06]} d5 {[%emt 0:02:25]} 4. Qa4 {[%emt 0:00:
00]} Qd6 {[%emt 0:05:08]} 5. Bb5 {[%emt 0:07:06]} Bd7 {[%emt 0:00:43]} 6. exd5
{[%emt 0:04:10]} Qxd5 {[%emt 0:00:54]} 7. O-O {[%emt 0:04:04]} Nge7 {[%emt 0:
00:00]} 8. Re1 {[%emt 0:07:51]} O-O-O {[%emt 0:03:55]} 9. Bc4 {[%emt 0:09:21]}
Qc5 {[%emt 0:05:07]} 10. Bxf7 {[%emt 0:05:39]} Nf5 {[%emt 0:04:41]} 11. b4 {
[%emt 0:05:24]} Qb6 {[%emt 0:09:50]} 12. b5 {[%emt 0:08:14]} Na5 {[%emt 0:00:
00]} 13. Nxe5 {[%emt 0:04:14]} Bxb5 {[%emt 0:04:23]} 14. Qg4 {[%emt 0:01:56]}
g6 {[%emt 0:06:16]} 15. d4 {[%emt 0:02:51]} Bd6 {[%emt 0:01:54]} 16. Be6+ {
[%emt 0:08:42]} Kb8 {[%emt 0:00:08]} 17. Nf7 {[%emt 0:02:36]} Rde8 {[%emt 0:00:
00]} 18. Nxh8 {[%emt 0:05:55]} Bc4 {[%emt 0:01:38]} 19. Nf7 {[%emt 0:01:42]}
Rxe6 {[%emt 0:03:46]} 20. Rxe6 {[%emt 0:01:52]} Bxe6 {[%emt 0:00:03]} 21. Nxd6
{[%emt 0:01:47]} Qxd6 {[%emt 0:02:00]} 22. Bf4 {[%emt 0:00:51]} Qc6 {[%emt 0:
00:00]} 23. Qg5 {[%emt 0:02:02]} b6 {[%emt 0:01:32]} 24. Na3 {[%emt 0:06:53]}
Nb7 {[%emt 0:01:31]} 25. Qf6 {[%emt 0:03:01]} Qe4 {[%emt 0:03:00]} 26. Qe5 {
[%emt 0:03:15]} Qxe5 {[%emt 0:01:38]} 27. Bxe5 {[%emt 0:00:00]} Nfd6 {[%emt 0:
00:00]} 28. Nc2 {[%emt 0:00:00]} Nb5 {[%emt 0:00:51]} 29. Nb4 {[%emt 0:01:02]}
Nxc3 {[%emt 0:01:33]} 30. Na6+ {[%emt 0:01:47]} Kc8 {[%emt 0:00:07]} 31. Nxc7 {
[%emt 0:00:27]} Bc4 {[%emt 0:00:28]} 32. h4 {[%emt 0:01:30]} Kd7 {[%emt 0:00:
00]} 33. Kh2 {[%emt 0:00:59]} Nxa2 {[%emt 0:00:40]} 34. Re1 {[%emt 0:00:35]}
Nb4 {[%emt 0:00:24]} 35. Bg3 {[%emt 0:00:28]} b5 {[%emt 0:00:37]} 36. Ra1 {
[%emt 0:00:40]} a5 {[%emt 0:00:14]} 37. Rc1 {[%emt 0:00:30]} Nd6 {[%emt 0:00:
00]} 38. Na8 {[%emt 0:00:25]} Nd5 {[%emt 0:00:18]} 39. f3 {[%emt 0:00:26]} a4 {
[%emt 0:00:43]} 40. Ra1 {[%emt 0:00:19]} Nf5 {[%emt 0:00:30]} 41. Bf2 {[%emt 0:
00:00]} Kc6 {[%emt 0:00:37]} 42. g4 {[%emt 0:02:33]} Nfe7 {[%emt 0:00:46]} 43.
Bg3 {[%emt 0:03:57]} Kb7 {[%emt 0:00:45]} 44. Bd6 {[%emt 0:00:49]} Kxa8 {
[%emt 0:00:46]} 45. Re1 {[%emt 0:00:59]} Nc6 {[%emt 0:01:00]} 46. Re8+ {
[%emt 0:00:32]} Kb7 {[%emt 0:00:09]} 47. Rh8 {[%emt 0:00:55]} b4 {[%emt 0:00:
00]} 48. Rxh7+ {[%emt 0:00:22]} Ka6 {[%emt 0:00:42]} 49. h5 {[%emt 0:01:50]} a3
{[%emt 0:01:31]} 50. Rh8 {[%emt 0:00:41]} gxh5 {[%emt 0:02:11]} 51. gxh5 {
[%emt 0:00:46]} a2 {[%emt 0:01:55]} 52. Ra8+ {[%emt 0:00:56]} Kb7 {[%emt 0:00:
00]} 53. h6 {[%emt 0:00:33]} Nf6 {[%emt 0:03:10]} 54. Bxb4 {[%emt 0:00:26]}
Kxa8 {[%emt 0:00:46]} 55. Bc3 {[%emt 0:00:14]} Bd3 {[%emt 0:00:39]} 56. Kg3 {
[%emt 0:00:26]} Nd5 {[%emt 0:02:06]} 57. Bb2 {[%emt 0:00:24]} Nce7 {[%emt 0:00:
00]} 58. Kg4 {[%emt 0:00:22]} Kb7 {[%emt 0:00:22]} 59. f4 {[%emt 0:01:01]} Kc6
{[%emt 0:00:11]} 60. Kf3 {[%emt 0:00:34]} Kb5 {[%emt 0:00:15]} 61. h7 {[%emt 0:
00:00]} Bxh7 {[%emt 0:00:06]} 62. Ke2 {[%emt 0:00:03]} Kc4 {[%emt 0:00:13]} 63.
Kd2 {[%emt 0:00:18]} Kb3 {[%emt 0:00:20]} 64. Ba1 {[%emt 0:00:30]} Nc6 {
[%emt 0:00:10]} 65. Kd1 {[%emt 0:01:03]} Ncb4 {[%emt 0:00:11]} 66. Kc1 {
[%emt 0:00:13]} Nc2 {[%emt 0:00:19]} 0-1

[Event "44th Chess Olympiad Women 2022"]
[Site "Chennai"]
[Date "2022.07.31"]
[Round "3.8"]
[White "Hakimifard, Ghazal"]
[Black "Heinemann, Josefine"]
[Result "1/2-1/2"]
[WhiteElo "2296"]
[BlackElo "2321"]
[Annotator "RC"]
[PlyCount "139"]
[EventDate "2022.??.??"]
[TimeControl "60"]

1. e4 {[%emt 0:00:03]} e5 {[%emt 0:00:06]} 2. Nf3 {[%emt 0:00:07]} Nc6 {
[%emt 0:00:06]} 3. Bb5 {[%emt 0:00:07]} a6 {[%emt 0:00:12]} 4. Ba4 {[%emt 0:00:
00]} Nf6 {[%emt 0:00:04]} 5. d3 {[%emt 0:00:08]} Bc5 {[%emt 0:00:24]} 6. O-O {
[%emt 0:00:28]} d6 {[%emt 0:00:16]} 7. c3 {[%emt 0:04:00]} O-O {[%emt 0:02:14]}
8. Nbd2 {[%emt 0:02:20]} Ba7 {[%emt 0:00:56]} 9. h3 {[%emt 0:01:13]} Nh5 {
[%emt 0:01:23]} 10. Bxc6 {[%emt 0:11:41]} bxc6 {[%emt 0:00:24]} 11. d4 {
[%emt 0:06:34]} Nf4 {[%emt 0:08:34]} 12. Nc4 {[%emt 0:04:07]} Nxh3+ {[%emt 0:
00:00]} 13. gxh3 {[%emt 0:00:23]} Bxh3 {[%emt 0:00:09]} 14. Re1 {[%emt 0:12:16]
} f5 {[%emt 0:05:52]} 15. Ng5 {[%emt 0:17:55]} Bg4 {[%emt 0:01:46]} 16. Qd3 {
[%emt 0:02:20]} f4 {[%emt 0:13:07]} 17. Nf3 {[%emt 0:00:31]} Qe8 {[%emt 0:00:
00]} 18. Kf1 {[%emt 0:04:17]} Qh5 {[%emt 0:03:40]} 19. Ke2 {[%emt 0:01:17]}
exd4 {[%emt 0:01:18]} 20. cxd4 {[%emt 0:05:33]} Rae8 {[%emt 0:07:17]} 21. Ncd2
{[%emt 0:02:00]} d5 {[%emt 0:01:27]} 22. e5 {[%emt 0:00:40]} c5 {[%emt 0:00:25]
} 23. Qxa6 {[%emt 0:03:43]} Bb6 {[%emt 0:09:50]} 24. Qb5 {[%emt 0:00:48]} Kh8 {
[%emt 0:03:35]} 25. Rg1 {[%emt 0:10:52]} cxd4 {[%emt 0:00:49]} 26. Rxg4 {
[%emt 0:00:13]} Qxg4 {[%emt 0:00:06]} 27. Qxd5 {[%emt 0:00:06]} d3+ {[%emt 0:
00:00]} 28. Qxd3 {[%emt 0:01:26]} Rxe5+ {[%emt 0:00:51]} 29. Kd1 {[%emt 0:00:
00]} Bxf2 {[%emt 0:01:35]} 30. Nc4 {[%emt 0:00:14]} Ree8 {[%emt 0:02:08]} 31.
Kc2 {[%emt 0:01:39]} Rd8 {[%emt 0:01:41]} 32. Qe4 {[%emt 0:00:04]} Rfe8 {
[%emt 0:03:24]} 33. Nce5 {[%emt 0:00:41]} Rxe5 {[%emt 0:01:38]} 34. Nxe5 {
[%emt 0:01:45]} Qd1+ {[%emt 0:00:06]} 35. Kb1 {[%emt 0:00:46]} Be3 {[%emt 0:00:
00]} 36. Qc4 {[%emt 0:02:47]} Rd5 {[%emt 0:02:26]} 37. Qxc7 {[%emt 0:02:05]}
Qxc1+ {[%emt 0:06:03]} 38. Qxc1 {[%emt 0:00:02]} Bxc1 {[%emt 0:00:07]} 39. Nf7+
{[%emt 0:02:36]} Kg8 {[%emt 0:00:04]} 40. Nh6+ {[%emt 0:00:05]} Kf8 {[%emt 0:
00:00]} 41. Kxc1 {[%emt 0:30:21]} Rh5 {[%emt 0:30:04]} 42. Kd2 {[%emt 0:00:36]}
Rxh6 {[%emt 0:02:32]} 43. a4 {[%emt 0:00:00]} Ke7 {[%emt 0:00:00]} 44. a5 {
[%emt 0:00:00]} Ra6 {[%emt 0:00:00]} 45. b4 {[%emt 0:00:00]} Kd7 {[%emt 0:00:
00]} 46. Kd3 {[%emt 0:00:00]} Rf6 {[%emt 0:00:00]} 47. a6 {[%emt 0:00:00]} Rf8
{[%emt 0:00:00]} 48. a7 {[%emt 0:00:00]} Ra8 {[%emt 0:00:00]} 49. Ke4 {[%emt 0:
00:00]} Kc6 {[%emt 0:00:00]} 50. Kxf4 {[%emt 0:00:00]} Kb6 {[%emt 0:00:00]} 51.
Rh1 {[%emt 0:00:00]} Rxa7 {[%emt 0:00:00]} 52. Kg5 {[%emt 0:00:00]} h6+ {
[%emt 0:00:00]} 53. Kg6 {[%emt 0:00:00]} Kb5 {[%emt 0:00:00]} 54. Rh4 {[%emt 0:
00:00]} Ka4 {[%emt 0:00:00]} 55. Re4 {[%emt 0:00:00]} Rb7 {[%emt 0:03:06]} 56.
Re1 {[%emt 0:00:00]} Kb3 {[%emt 0:00:00]} 57. Rb1+ {[%emt 0:00:00]} Kc2 {
[%emt 0:00:00]} 58. Rf1 {[%emt 0:00:04]} Kc3 {[%emt 0:00:00]} 59. Rc1+ {
[%emt 0:00:08]} Kd2 {[%emt 0:00:00]} 60. Rc4 {[%emt 0:01:41]} Kd3 {[%emt 0:00:
00]} 61. Rf4 {[%emt 0:00:34]} Kc3 {[%emt 0:00:00]} 62. Rf1 {[%emt 0:00:05]} Rd7
{[%emt 0:00:00]} 63. Rf4 {[%emt 0:01:31]} Rd4 {[%emt 0:00:00]} 64. Rf3+ {
[%emt 0:00:56]} Kxb4 {[%emt 0:00:00]} 65. Kxg7 {[%emt 0:00:02]} h5 {[%emt 0:00:
00]} 66. Rh3 {[%emt 0:00:36]} h4 {[%emt 0:00:00]} 67. Kg6 {[%emt 0:00:07]} Kc4
{[%emt 0:00:00]} 68. Kg5 {[%emt 0:00:08]} Kd5 {[%emt 0:00:00]} 69. Rxh4 {
[%emt 0:00:05]} Ke5 {[%emt 0:00:31]} 70. Rxd4 1/2-1/2